bitfinex/quotes_ETHUSD_20251217
["timestamp","ask_amount","ask_price","bid_price","bid_amount"]
[1765982563550,0.555,2931.2,2930.4,0.03411281]
[1765982563747,0.94260922,2931.4,2930.6,0.03411281]
[1765982563958,0.4675,2931.3,2930.6,3.41221244]
[1765982564111,0.72505513,2931.3,2930.6,6.82448296]
[1765982564444,0.001,2931.5,2930.6,6.82448296]
[1765982564634,0.555,2931.4,2930.6,7.15668296]
[1765982564820,1.28021517,2931.4,2930.6,10.56895348]
[1765982565143,0.001,2931.5,2930.7,0.03411281]
[1765982565308,0.001,2931.5,2930.7,0.36631281]
[1765982565711,0.001,2931.3,2930.7,0.36631281]
[1765982565933,0.001,2931.3,2930.9,0.3322]
[1765982566640,0.001,2931.3,2930.8,6.82407532]
[1765982566938,0.001,2931.3,2931.2,0.3322]
[1765982567144,0.001,2931.3,2931.2,0.6644]
[1765982567307,0.001,2931.3,2930.8,5.2188347]
[1765982567507,0.4685,2931.3,2930.1,3.41282703]
[1765982567824,0.4685,2931.3,2930.3,3.41261986]
[1765982568025,0.72646104,2931.3,2930.5,0.3322]
[1765982568233,0.72566104,2931.3,2930.5,0.3322]
[1765982568436,0.0002,2931.3,2930.5,0.3322]
[1765982568647,0.0002,2931.3,2930.6,6.21633959]
[1765982568814,3.41166407,2931.3,2930.7,0.62163396]
[1765982569015,3.41166407,2931.3,2930.5,0.555]
[1765982569216,0.72549777,2931.2,2930.3,3.41261986]
[1765982569436,0.4675,2931.1,2930.3,3.41261986]
[1765982569751,1.0225,2931.1,2930.2,3.41269223]
[1765982569948,0.1933,2930.9,2930.1,3.4128528]
[1765982570160,0.1933,2930.9,2930.1,6.8257056]
[1765982570325,6.82360968,2931.0,2930.1,3.4128528]
[1765982570532,4.14966581,2931.0,2930.1,6.8257056]
[1765982570716,3.41170652,2931.3,2930.5,0.3322]
[1765982570916,0.72540001,2931.2,2930.4,0.555]
[1765982571319,0.72540001,2931.2,2930.3,0.03411281]
[1765982571320,0.72540001,2931.2,2930.3,0.92131281]
[1765982571607,0.72540001,2931.2,2930.3,2.65893389]
[1765982571729,0.0002,2931.3,2930.7,6.54853959]
[1765982571930,0.0002,2931.3,2930.9,6.8238425]
[1765982572128,0.0002,2931.3,2930.9,3.41192125]
[1765982572342,0.0002,2931.3,2931.0,0.03411804]
[1765982572543,0.0002,2931.3,2931.1,0.3322]
[1765982572724,0.0002,2931.3,2931.1,0.554]
[1765982573659,0.0002,2931.3,2931.2,0.03411281]
[1765982573962,0.0002,2931.3,2931.2,3.41157205]
[1765982575435,0.0002,2931.3,2930.9,1.3927471]
[1765982575631,0.0002,2931.3,2930.8,0.554]
[1765982575958,0.0002,2931.3,2930.9,6.82375527]
[1765982576256,0.0002,2931.3,2930.5,6.49782827]
[1765982576416,0.0002,2931.3,2930.5,0.002]
[1765982576621,0.4677,2931.3,2930.5,0.002]
[1765982576818,1.1234,2930.6,2930.5,0.002]
[1765982577552,2.08936827,2930.6,2930.0,0.002]
[1765982577856,0.4675,2930.4,2930.0,0.002]
[1765982578152,3.88005485,2930.4,2930.0,0.002]
[1765982578656,0.43360621,2930.6,2930.1,0.1679]
[1765982578821,3.41170939,2931.1,2930.4,5.90771546]
[1765982578822,0.72544152,2930.7,2930.4,5.90771546]
[1765982579020,4.13727969,2931.0,2930.4,5.90771546]
[1765982579268,1.92775647,2931.3,2930.4,6.23991546]
[1765982579563,0.72553044,2931.2,2930.5,0.03411281]
[1765982580211,4.13715924,2931.2,2930.4,6.23991546]
[1765982580365,0.72553044,2931.1,2930.5,6.82471671]
[1765982580561,0.72553044,2931.2,2930.5,7.19102952]
[1765982580765,0.0002,2931.3,2931.2,0.3322]
[1765982580975,0.0002,2931.3,2931.2,1.21551855]
[1765982581196,0.0002,2931.3,2931.2,0.62740283]
[1765982581395,0.0002,2931.3,2931.1,0.3322]
[1765982581899,0.0002,2931.3,2931.2,0.03411281]
[1765982582104,0.0002,2931.3,2931.2,3.44568486]
[1765982582931,0.0002,2931.3,2931.1,3.44574861]
[1765982583081,0.0002,2931.3,2931.1,4.67993475]
[1765982583284,0.0002,2931.3,2931.1,0.554]
[1765982583536,0.0002,2931.3,2930.9,0.03411281]
[1765982583686,0.0002,2931.3,2930.2,0.03411281]
[1765982583687,0.0002,2931.3,2930.4,0.554]
[1765982583889,0.0002,2931.3,2930.5,0.002]
[1765982584200,0.4675,2931.2,2930.5,0.002]
[1765982584383,0.78446113,2931.1,2930.5,0.002]
[1765982584731,0.0002,2931.3,2930.5,0.03611281]
[1765982585026,0.0002,2931.3,2930.7,0.03411281]
[1765982585184,0.0002,2931.3,2930.6,0.554]
[1765982585385,0.0002,2931.3,2930.5,0.002]
[1765982585386,0.4873,2931.2,2930.5,0.002]
[1765982585591,0.4873,2930.8,2930.5,0.002]
[1765982585790,0.72409982,2931.2,2930.5,0.002]
[1765982585791,0.4873,2931.2,2930.5,0.002]
[1765982585991,0.72429982,2931.3,2930.5,5.90971546]
[1765982586187,7.54734674,2931.3,2930.5,9.32206641]
[1765982586384,0.72423777,2931.2,2930.5,0.002]
[1765982586588,0.6731,2930.6,2930.5,0.002]
[1765982586788,0.554,2931.0,2930.5,0.002]
[1765982586989,0.4873,2930.8,2930.5,0.002]
[1765982587434,0.4873,2930.6,2930.5,0.002]
[1765982587589,0.5967622,2930.6,2930.1,0.1679]
[1765982587789,0.1858,2930.9,2930.1,3.58069129]
[1765982587992,0.4873,2930.8,2930.0,0.002]
[1765982588321,0.4751,2930.6,2930.0,0.002]
[1765982588528,0.4751,2930.4,2930.0,0.002]
[1765982589188,0.68560044,2930.4,2930.0,0.002]
[1765982589395,0.72384795,2930.6,2930.0,0.002]
[1765982589591,0.4751,2930.3,2930.0,0.002]
[1765982590298,5.16501646,2930.8,2930.1,0.1679]
[1765982590500,0.9668705,2930.8,2930.2,0.03411281]
[1765982590699,0.1858,2930.9,2930.2,0.03411281]
[1765982590700,3.59779531,2930.9,2930.2,0.03411281]
[1765982590922,3.59773081,2930.9,2930.2,0.03411281]
[1765982591314,0.1923,2931.1,2930.5,5.90771546]
[1765982592129,0.001,2930.8,2930.3,6.82523972]
[1765982592303,0.0002,2930.8,2930.3,7.15743972]
[1765982592707,0.0002,2930.8,2930.3,6.82523972]
[1765982592908,0.0002,2930.8,2930.4,0.3322]
[1765982593109,0.0002,2930.8,2930.3,6.82523972]
[1765982593497,0.0002,2930.8,2930.4,0.554]
[1765982593699,0.0002,2930.8,2930.5,6.23991546]
[1765982593908,0.0002,2930.8,2930.5,5.90771546]
[1765982594313,0.0002,2930.8,2930.6,3.41227052]
[1765982595021,0.0002,2930.8,2930.6,6.82454104]
[1765982595218,0.0002,2930.8,2930.6,7.15674104]
[1765982595722,0.0002,2930.8,2930.6,6.82454104]
[1765982596335,0.0002,2930.8,2930.7,0.3322]
[1765982596626,0.0002,2930.8,2930.4,3.41240423]
[1765982596827,0.0002,2930.8,2930.2,5.94182827]
[1765982596999,0.0002,2930.8,2930.5,3.41234331]
[1765982597398,0.0002,2930.8,2930.5,6.82473027]
[1765982597702,0.0002,2930.8,2930.5,3.41234331]
[1765982598403,0.0002,2930.8,2930.4,6.82500682]
[1765982598631,0.0002,2930.8,2930.2,0.03411281]
[1765982598832,0.0002,2930.8,2930.3,3.41258475]
[1765982599037,0.0002,2930.8,2930.3,12.73292007]
[1765982599198,0.0002,2930.8,2930.3,3.41258475]
[1765982599404,0.0002,2930.8,2930.2,3.96667149]
[1765982599726,0.0002,2930.8,2930.3,3.41261185]
[1765982599914,0.4751,2930.7,2930.3,3.41261185]
[1765982600107,0.0002,2930.8,2930.3,13.5251881]
[1765982600508,0.0002,2930.8,2930.5,0.03411281]
[1765982600909,0.0002,2930.8,2930.3,13.5251881]
[1765982601703,0.0002,2930.8,2930.5,0.36831281]
[1765982601926,0.0002,2930.8,2930.5,0.002]
[1765982602128,0.4982,2930.6,2930.5,0.002]
[1765982602316,4.38557052,2930.6,2930.5,0.002]
[1765982602653,1.75309323,2930.6,2930.5,0.002]
[1765982603011,4.38557052,2930.6,2930.5,0.002]
[1765982603207,0.9733,2930.6,2930.5,0.002]
[1765982603643,4.38557052,2930.6,2930.5,0.002]
[1765982604155,5.1104488,2930.6,2930.5,0.002]
[1765982604346,1.69817828,2930.6,2930.5,0.002]
[1765982604648,0.9733,2930.6,2930.5,0.002]
[1765982604810,1.82555222,2930.6,2930.5,0.002]
[1765982605015,2.55046625,2930.6,2930.5,0.002]
[1765982605442,1.57716625,2930.6,2930.2,5.90771546]
[1765982605653,0.7249792,2930.5,2930.1,0.1679]
[1765982605951,1.2000792,2930.7,2930.0,3.41496267]
[1765982606344,3.41227052,2930.6,2930.0,3.41496267]
[1765982606534,0.9733,2930.1,2930.0,0.002]
[1765982606934,1.6982792,2930.1,2930.0,0.002]
[1765982607356,0.9372,2930.0,2929.9,0.002]
[1765982607672,1.6621792,2930.0,2929.9,0.002]
[1765982607822,9.1168122,2930.0,2929.9,0.002]
[1765982608021,1.1653,2929.6,2929.5,0.002]
[1765982608254,1.7193,2929.6,2929.5,0.002]
[1765982608561,1.7193,2929.6,2929.3,0.002]
[1765982608562,0.9385,2929.5,2929.3,0.002]
[1765982608760,0.4936,2929.4,2928.3,3.41490347]
[1765982609071,0.4751,2929.3,2928.4,3.41477771]
[1765982609222,0.4751,2929.1,2928.2,5.91820861]
[1765982609424,0.4751,2929.1,2928.2,3.41504237]
[1765982609677,0.4751,2929.1,2928.1,3.58546796]
[1765982609836,0.4751,2929.1,2928.4,3.4148248]
[1765982610162,0.7249792,2929.3,2928.6,9.33277729]
[1765982610365,0.4751,2929.4,2928.6,9.3668901]
[1765982610550,0.4751,2929.4,2928.6,12.78149093]
[1765982610754,3.88880893,2929.4,2928.6,12.78149093]
[1765982611054,3.88880893,2929.4,2928.4,0.68298739]
[1765982611055,0.4751,2929.3,2928.3,6.50632142]
[1765982611241,6.82741786,2929.4,2928.6,5.91820861]
[1765982611242,1.20535179,2929.2,2928.6,5.91820861]
[1765982611439,1.20535179,2929.2,2928.6,3.41458305]
[1765982611763,1.20535179,2929.2,2928.6,3.41457576]
[1765982611968,0.73025179,2929.2,2928.5,3.41462311]
[1765982612167,0.4751,2928.8,2928.3,0.554]
[1765982612333,0.4751,2928.8,2928.1,0.20641281]
[1765982612531,0.4751,2928.8,2928.3,5.91820861]
[1765982612743,1.2214,2929.6,2928.6,5.91820861]
[1765982612977,1.2214,2929.6,2928.4,0.03411281]
[1765982612978,4.63487512,2929.6,2928.9,5.91820861]
[1765982613146,0.4751,2929.5,2928.9,5.91820861]
[1765982613565,0.4751,2929.5,2928.6,5.91820861]
[1765982613764,1.27993502,2929.4,2928.9,5.91820861]
[1765982613986,0.1923,2929.6,2928.9,5.91820861]
[1765982614287,3.60582822,2929.6,2928.9,5.91820861]
[1765982614438,0.6674,2929.6,2929.0,6.82826902]
[1765982614835,4.08086779,2929.6,2929.0,3.41413451]
[1765982615061,0.681,2930.0,2929.2,5.91820861]
[1765982615286,0.1923,2930.0,2929.5,5.91820861]
[1765982615939,0.4887,2929.9,2929.2,5.91820861]
[1765982616365,0.4879,2929.9,2929.2,5.91820861]
[1765982616566,0.4879,2929.9,2929.3,6.82756972]
[1765982616778,0.1923,2930.0,2929.5,5.91820861]
[1765982617453,0.1923,2930.0,2929.6,0.03411281]
[1765982617658,3.60527168,2930.0,2929.3,3.44789767]
[1765982617976,7.01824336,2930.0,2929.2,9.33206775]
[1765982618155,0.70182434,2929.9,2929.3,3.41378486]
[1765982618348,0.4887,2929.8,2929.1,3.41396597]
[1765982618545,0.4887,2929.8,2929.2,3.41388399]
[1765982618744,3.90201876,2929.7,2929.1,3.41396591]
[1765982618943,3.41331876,2929.7,2929.3,0.002]
[1765982619178,0.4887,2929.6,2929.3,0.002]
[1765982619659,0.9616,2929.4,2929.3,0.002]
[1765982620590,1.43289268,2929.6,2929.3,0.002]
[1765982620889,0.4887,2929.5,2929.3,0.002]
[1765982621055,0.9616,2929.4,2929.3,0.002]
[1765982621458,0.4729,2929.4,2929.3,0.002]
[1765982621660,0.94419268,2929.6,2929.3,0.002]
[1765982621966,0.554,2929.6,2929.3,0.002]
[1765982622545,0.1923,2930.0,2929.5,5.91820861]
[1765982622747,3.90139257,2930.3,2929.8,5.91820861]
[1765982622941,0.4887,2930.2,2929.6,3.41343528]
[1765982623266,0.4887,2930.2,2929.6,0.03411281]
[1765982623469,1.22010851,2930.2,2929.6,0.03411281]
[1765982623670,3.87364035,2930.5,2929.6,0.03411281]
[1765982623876,1.21097834,2930.4,2929.6,0.03411281]
[1765982624214,0.4887,2930.3,2929.6,0.03411281]
[1765982624744,0.72227834,2930.4,2929.6,0.03411281]
[1765982624745,0.72227834,2930.4,2929.8,5.95232142]
[1765982624946,3.90202465,2930.6,2930.1,5.91820861]
[1765982625146,0.4897,2930.6,2930.1,5.91820861]
[1765982625575,3.90200253,2930.6,2930.1,5.91820861]
[1765982625980,0.4897,2930.6,2930.1,5.91820861]
[1765982626370,3.41329576,2930.6,2930.1,5.91820861]
[1765982626566,0.4887,2930.5,2930.1,5.91820861]
[1765982626767,3.90114141,2930.5,2930.1,5.91820861]
[1765982626971,4.63257056,2930.5,2929.8,5.91820861]
[1765982627284,0.4887,2930.4,2929.8,9.33136755]
[1765982627689,0.4887,2930.2,2929.5,0.002]
[1765982627890,0.4887,2930.2,2929.5,3.41552024]
[1765982628092,0.72339463,2930.4,2929.8,5.91820861]
[1765982628093,1.27739463,2930.4,2929.8,5.91820861]
[1765982628261,0.4887,2929.8,2929.5,0.002]
[1765982628787,0.9616,2929.6,2929.5,0.002]
[1765982629095,4.09270202,2929.9,2929.5,0.002]
[1765982629385,0.4887,2929.8,2929.5,0.002]
[1765982629553,0.9616,2929.6,2929.5,0.002]
[1765982629952,0.4887,2929.8,2929.5,0.002]
[1765982630288,0.9616,2929.6,2929.5,0.002]
[1765982630793,7.48185108,2929.9,2929.5,5.92020861]
[1765982630973,0.9616,2929.6,2929.5,0.002]
[1765982632674,0.9616,2929.6,2928.4,0.002]
[1765982632675,6.8278028,2929.2,2928.4,0.002]
[1765982632874,1.27841758,2929.1,2928.6,5.91820861]
[1765982633183,0.72441758,2929.1,2928.6,5.91820861]
[1765982633382,0.72441758,2929.1,2928.6,0.59202086]
[1765982633586,0.4729,2928.5,2928.4,0.002]
[1765982635164,0.90549467,2929.1,2928.4,0.002]
[1765982635353,0.4887,2929.0,2928.4,0.002]
[1765982635557,0.4887,2928.8,2928.4,0.002]
[1765982635758,0.4729,2928.5,2928.4,0.002]
[1765982636101,0.9616,2928.5,2928.4,0.002]
[1765982636393,10.494668,2928.5,2928.4,0.002]
[1765982636590,0.9616,2928.2,2928.1,0.002]
[1765982636795,1.5156,2928.2,2928.1,0.002]
[1765982636992,5.24470815,2928.2,2928.1,0.002]
[1765982637290,5.41303139,2928.2,2928.1,0.002]
[1765982637484,5.09899051,2928.2,2928.1,0.002]
[1765982640105,3.41465612,2928.6,2928.1,0.002]
[1765982640411,3.4138486,2929.3,2928.4,6.1911637]
[1765982640562,6.82743966,2929.4,2928.7,6.1911637]
[1765982640763,0.4887,2929.2,2928.1,6.3662637]
[1765982640962,0.4887,2929.0,2928.1,0.002]
[1765982641259,0.554,2929.1,2928.1,13.53762091]
[1765982641459,0.4887,2929.0,2928.1,9.78143701]
[1765982641702,0.4887,2929.0,2928.1,13.19662091]
[1765982641865,0.4887,2929.0,2928.2,1.31966209]
[1765982642064,0.4887,2929.0,2928.1,6.1931637]
[1765982642362,0.4887,2928.8,2928.1,0.002]
[1765982642566,0.9616,2928.2,2928.1,0.002]
[1765982643005,5.09829089,2928.2,2928.1,0.002]
[1765982643427,4.60959089,2928.2,2928.1,0.002]
[1765982643714,4.37666727,2928.2,2928.1,0.002]
[1765982643913,0.4887,2928.6,2928.1,0.002]
[1765982644119,1.3911856,2929.1,2928.3,6.1911637]
[1765982644321,0.72158484,2929.0,2928.3,6.1911637]
[1765982644526,0.4887,2929.1,2928.3,6.1911637]
[1765982644818,7.54917409,2929.3,2928.3,6.1911637]
[1765982644983,3.90513451,2929.0,2928.4,3.41483403]
[1765982645183,0.80401741,2929.3,2928.4,3.41483403]
[1765982645417,3.41380748,2929.3,2928.4,3.44894684]
[1765982645579,6.82761496,2929.3,2928.4,6.86378087]
[1765982645779,6.82761496,2929.3,2928.4,3.41483403]
[1765982645986,1.27538891,2929.2,2928.1,0.1751]
[1765982646314,0.491,2929.1,2928.1,0.556]
[1765982646477,0.9685,2928.2,2928.1,0.002]
[1765982646683,1.5225,2928.2,2928.1,0.002]
[1765982646914,2.24388891,2928.2,2928.1,0.002]
[1765982647217,5.97359363,2928.2,2928.1,0.002]
[1765982647418,0.1958,2927.3,2927.2,0.002]
[1765982647716,11.83522817,2928.2,2927.2,0.002]
[1765982647717,0.1958,2928.0,2927.2,0.002]
[1765982647881,0.1958,2928.0,2927.5,6.1911637]
[1765982648083,0.91722286,2928.3,2927.5,6.1911637]
[1765982648313,0.91722286,2928.3,2927.6,0.61911637]
[1765982648516,3.41483403,2928.4,2927.6,0.61911637]
[1765982648812,0.554,2928.5,2927.4,0.03411281]
[1765982648813,3.41473807,2928.5,2927.4,7.0901637]
[1765982649114,6.82947614,2928.5,2927.8,9.606693]
[1765982649289,7.30497614,2928.5,2927.8,6.1911637]
[1765982649697,0.4755,2928.4,2927.8,6.1911637]
[1765982649897,0.4755,2928.4,2927.8,7.15183854]
[1765982650097,0.4755,2928.4,2927.3,6.7451637]
[1765982650319,0.4755,2928.3,2927.4,3.41597968]
[1765982650529,0.4755,2928.2,2927.3,6.1911637]
[1765982650816,0.4755,2928.2,2927.3,9.60716588]
[1765982651020,4.3820839,2928.1,2928.0,0.002]
[1765982651185,5.28934272,2928.1,2928.0,0.002]
[1765982651810,6.01055648,2928.1,2928.0,0.002]
[1765982652427,1.21261376,2928.1,2928.0,0.002]
[1765982652617,0.4755,2928.5,2928.0,0.002]
[1765982653008,0.1958,2929.0,2928.3,6.8299013]
[1765982653326,0.1958,2929.0,2928.3,3.41495065]
[1765982653516,1.0295,2929.3,2928.6,6.1911637]
[1765982653517,4.61076294,2929.3,2928.6,6.1911637]
[1765982653720,0.1855,2929.4,2929.0,6.1911637]
[1765982654019,0.1855,2929.4,2928.3,10.24485195]
[1765982654020,0.1855,2928.5,2928.0,0.002]
[1765982654257,0.1855,2928.5,2928.1,3.41512148]
[1765982654524,0.9024856,2929.2,2928.3,6.1911637]
[1765982654688,0.9024856,2929.2,2928.1,0.68324627]
[1765982654689,4.78576,2929.1,2928.7,6.1911637]
[1765982654888,4.44393528,2929.6,2928.7,6.1911637]
[1765982655118,7.85740277,2929.6,2928.8,3.41436765]
[1765982655388,0.4755,2929.4,2928.3,0.03411281]
[1765982655612,0.4755,2929.4,2928.4,3.41475032]
[1765982655815,0.4755,2929.4,2928.3,0.58811281]
[1765982656118,0.4755,2929.4,2928.0,0.002]
[1765982656119,0.4755,2929.1,2928.0,0.002]
[1765982656320,0.4755,2928.8,2928.0,3.41723721]
[1765982656618,0.4755,2928.8,2928.0,0.002]
[1765982656786,0.9669,2928.1,2928.0,0.002]
[1765982656985,3.41501462,2928.3,2928.0,0.002]
[1765982657189,0.9669,2928.1,2928.0,0.002]
[1765982658205,0.4755,2928.5,2928.0,0.002]
[1765982658533,0.4755,2928.4,2928.0,0.002]
[1765982658929,0.72413639,2928.5,2928.0,0.002]
[1765982659129,0.72413639,2928.5,2928.0,6.1931637]
[1765982659130,4.13886319,2928.5,2928.0,6.1931637]
[1765982659344,0.001,2928.5,2928.0,6.1931637]
[1765982659510,0.001,2928.5,2928.4,6.1911637]
[1765982659828,0.001,2928.5,2928.4,7.0901637]
[1765982660029,3.41447034,2929.6,2928.5,0.345]
[1765982660211,0.001,2929.6,2928.9,6.1911637]
[1765982660537,6.827884,2929.6,2928.9,6.1911637]
[1765982660827,1.19968434,2929.5,2928.9,6.1911637]
[1765982661139,3.41366832,2929.4,2928.6,3.41456406]
[1765982661303,0.7240384,2929.3,2928.6,3.96853508]
[1765982661808,0.7240384,2929.3,2928.6,0.554]
[1765982662010,0.7240384,2929.3,2928.7,4.09234568]
[1765982662215,0.7240384,2929.3,2928.7,0.67792765]
[1765982662533,0.7240384,2929.3,2928.7,4.09238293]
[1765982662922,0.7240384,2929.3,2928.7,0.67792765]
[1765982663125,3.4139014,2929.2,2928.6,3.41455189]
[1765982663822,0.72408415,2929.1,2928.2,3.41501227]
[1765982664001,0.1855,2929.1,2928.3,0.03411281]
[1765982664198,6.8278028,2929.2,2928.5,9.60584309]
[1765982664199,3.4139014,2929.2,2928.5,9.60584309]
[1765982665211,3.96780558,2929.3,2928.5,13.57456052]
[1765982665417,3.96780558,2929.3,2928.5,11.52071042]
[1765982665614,7.38161116,2929.3,2928.5,11.52071042]
[1765982665943,0.1855,2928.2,2928.0,0.002]
[1765982666143,0.1855,2928.4,2928.0,0.002]
[1765982666443,0.661,2928.4,2928.0,0.002]
[1765982666640,1.62574974,2928.9,2928.1,3.41513557]
[1765982666641,0.72326414,2928.8,2928.1,3.41513557]
[1765982666826,0.1855,2928.9,2928.4,6.1911637]
[1765982667136,3.41436765,2928.8,2928.2,9.60619743]
[1765982667336,3.59979891,2928.9,2928.2,9.60619743]
[1765982667541,7.48959782,2928.9,2928.2,3.41503373]
[1765982667705,7.48959782,2928.9,2928.2,3.415043]
[1765982667905,0.1855,2928.9,2928.2,7.34501694]
[1765982668104,3.59979048,2928.9,2928.2,3.96406248]
[1765982668306,7.01408096,2928.9,2928.2,3.92994967]
[1765982668606,7.48958096,2928.9,2928.2,3.92994967]
[1765982669114,7.01408096,2928.9,2928.2,3.92994967]
[1765982669433,7.01408096,2928.9,2928.2,0.51490667]
[1765982669607,0.72355316,2928.8,2928.1,6.1911637]
[1765982669807,0.4755,2928.7,2928.1,6.1911637]
[1765982670034,0.4755,2928.7,2928.2,3.41504355]
[1765982670234,0.4755,2928.7,2928.0,0.002]
[1765982670414,1.29459891,2928.7,2928.1,3.41506945]
[1765982670604,0.4755,2928.7,2928.1,9.60628798]
[1765982671224,0.4755,2928.7,2928.1,6.1911637]
[1765982671424,3.89000716,2928.7,2928.1,9.60629488]
[1765982672213,3.41440721,2928.8,2928.1,9.60629488]
[1765982672803,4.07527747,2928.9,2928.1,13.02147878]
[1765982673005,0.9024856,2929.2,2928.5,6.1911637]
[1765982673241,4.13808503,2929.3,2928.5,6.1911637]
[1765982673428,1.198795,2929.2,2928.5,0.554]
[1765982673638,0.723295,2929.2,2928.4,3.41477355]
[1765982673808,0.4755,2929.1,2928.3,3.41489898]
[1765982674008,1.27823751,2929.1,2928.4,3.41477789]
[1765982674208,1.27823751,2929.1,2928.5,3.41468079]
[1765982674442,0.661,2928.9,2928.2,0.03411281]
[1765982674742,7.32508006,2929.3,2928.5,3.41462171]
[1765982675038,0.4965,2929.1,2928.4,3.41477736]
[1765982675241,0.4965,2929.1,2928.5,3.41470853]
[1765982675604,3.91057838,2929.1,2928.4,6.82966806]
[1765982675939,3.41407838,2929.1,2928.4,3.44894684]
[1765982676241,0.001,2929.3,2928.5,0.03411281]
[1765982676443,3.4148527,2929.3,2928.8,0.1739]
[1765982676766,3.41486237,2929.3,2928.8,0.1739]
[1765982677047,0.4965,2929.2,2928.2,0.58811281]
[1765982677251,0.4965,2929.1,2928.1,0.1759]
[1765982677537,0.1962,2928.9,2928.1,9.81629896]
[1765982677742,7.02489408,2928.9,2928.1,13.19741307]
[1765982677927,7.02489408,2928.9,2928.1,9.78222917]
[1765982678317,3.61054704,2928.9,2928.2,0.03411281]
[1765982678523,6.82869408,2928.9,2928.2,0.37991281]
[1765982678724,7.02489408,2928.9,2928.3,1.35773417]
[1765982679029,0.1962,2928.9,2928.3,1.35773417]
[1765982679229,3.4141859,2929.0,2928.3,1.35773417]
[1765982679431,3.91059076,2929.1,2928.3,1.35773417]
[1765982679746,7.32471464,2929.1,2928.4,3.44887544]
[1765982679942,3.41409076,2929.1,2928.4,4.32984098]
[1765982680150,6.82821464,2929.1,2928.4,4.32984098]
[1765982680322,3.41409076,2929.1,2928.4,4.32984098]
[1765982680527,0.001,2929.3,2928.5,6.1911637]
[1765982680732,3.41479907,2929.3,2928.6,0.93391281]
[1765982680945,7.32509814,2929.3,2928.5,6.19071307]
[1765982681147,3.41479907,2929.3,2928.7,0.554]
[1765982681560,6.82859814,2929.3,2928.7,0.554]
[1765982681774,6.82859814,2929.3,2928.9,6.53651307]
[1765982681775,0.001,2929.3,2928.9,6.53651307]
[1765982682053,0.001,2929.3,2929.2,0.3458]
[1765982682251,0.001,2929.3,2928.7,3.96847487]
[1765982682447,0.001,2929.3,2928.7,1.39536607]
[1765982682626,0.4975,2929.3,2928.6,4.00263234]
[1765982683049,0.001,2929.3,2928.6,4.00263234]
[1765982683346,0.001,2929.3,2928.7,6.82893534]
[1765982683649,0.001,2929.3,2928.7,3.4144511]
[1765982683976,0.001,2929.3,2928.9,0.3458]
[1765982684122,0.001,2929.3,2929.2,0.6916]
[1765982684444,0.001,2929.3,2929.2,0.72571281]
[1765982684650,0.001,2929.3,2928.8,0.37991281]
[1765982684951,0.001,2929.3,2929.2,0.6916]
[1765982685320,0.001,2929.6,2929.5,0.6896]
[1765982685546,0.001,2929.6,2929.5,1.2436]
[1765982685821,0.001,2929.6,2929.5,4.6571518]
[1765982686025,0.001,2929.6,2929.5,5.49834607]
[1765982686448,0.001,2929.6,2928.9,1.06233324]
[1765982686649,0.001,2929.6,2929.2,0.03411281]
[1765982686846,0.001,2929.6,2929.0,0.58811281]
[1765982687456,0.001,2929.6,2929.3,3.41374568]
[1765982687626,0.001,2929.6,2929.0,4.00223927]
[1765982687822,0.001,2929.6,2929.1,3.92040701]
[1765982688044,0.001,2929.6,2929.1,0.50645725]
[1765982688244,0.0002,2929.6,2929.1,3.96797397]
[1765982689679,0.0002,2929.6,2929.1,7.38199192]
[1765982689892,0.0002,2929.6,2929.1,7.72679192]
[1765982690052,0.0002,2929.6,2929.5,0.3448]
[1765982690251,0.0002,2929.6,2929.2,0.03411281]
[1765982690450,0.0002,2929.6,2929.5,0.3448]
[1765982690685,0.0002,2929.6,2929.4,0.03411281]
[1765982690884,0.0002,2929.6,2929.3,0.74161047]
[1765982691284,0.0002,2929.6,2929.5,0.3448]
[1765982691695,0.0002,2929.6,2929.4,0.554]
[1765982691847,0.0002,2929.6,2929.5,0.6896]
[1765982692171,0.0002,2929.6,2929.5,2.19333639]
[1765982692562,0.0002,2929.6,2929.5,1.84853639]
[1765982693084,0.0002,2929.6,2929.5,2.40253639]
[1765982693787,0.0002,2929.6,2929.5,6.195001]
[1765982695386,0.0002,2929.6,2929.5,12.1075313]
[1765982697892,0.001,2930.5,2929.5,12.1075313]
[1765982697893,0.001,2930.5,2930.4,0.8605]
[1765982698092,0.001,2931.5,2930.6,0.3428]
[1765982698312,0.001,2931.5,2931.2,5.9125303]
[1765982698468,0.001,2931.5,2931.2,7.05778333]
[1765982699661,0.001,2931.5,2931.2,6.50378333]
[1765982699862,0.001,2931.5,2931.2,6.4665303]
[1765982700065,0.001,2931.5,2931.0,0.03411281]
[1765982700371,0.001,2931.5,2931.2,0.3428]
[1765982700576,0.001,2931.5,2931.2,3.41157205]
[1765982701101,3.41053112,2932.1,2931.2,3.41157205]
[1765982701102,0.001,2932.7,2931.9,0.6812]
[1765982701322,0.001,2932.7,2931.9,1.2352]
[1765982701500,0.001,2932.7,2932.6,0.6792]
[1765982701805,0.4965,2934.3,2933.0,0.3396]
[1765982701806,3.40808605,2934.2,2933.0,0.3396]
[1765982702004,0.1962,2934.7,2934.0,5.9125303]
[1765982702301,0.9024856,2934.9,2934.1,0.1709]
[1765982702302,0.1962,2934.9,2934.1,0.1709]
[1765982702469,0.4965,2934.8,2933.8,6.4665303]
[1765982702666,0.4965,2934.8,2933.6,0.554]
[1765982703005,0.4965,2934.8,2934.1,6.0834303]
[1765982703214,0.46438023,2935.2,2934.4,5.9125303]
[1765982703424,0.46438023,2935.2,2934.2,0.03408083]
[1765982703425,0.1962,2935.5,2934.7,5.9125303]
[1765982703583,0.1962,2935.5,2934.8,0.554]
[1765982703584,3.60279614,2935.5,2934.8,0.554]
[1765982703779,0.4965,2935.3,2934.1,0.1709]
[1765982703983,0.4965,2935.1,2934.1,0.1709]
[1765982704201,0.40992961,2935.4,2934.8,5.9125303]
[1765982704400,6.81361358,2935.3,2934.5,5.9125303]
[1765982704604,6.81361358,2935.3,2934.5,0.554]